bitfinex/quotes_BTCUSD_20211001
["timestamp","ask_amount","ask_price","bid_price","bid_amount"]
[1633072490809,0.568681,44041.0,44038.0,0.05]
[1633072491009,0.64056823,44041.0,44038.0,0.05]
[1633072491209,0.340786,44040.0,44038.0,0.05]
[1633072491415,0.0227,44039.0,44038.0,0.05]
[1633072491611,0.22890364,44039.0,44038.0,0.06444994]
[1633072492014,0.22890364,44039.0,44038.0,0.05]
[1633072492211,0.45847093,44039.0,44038.0,0.05]
[1633072492409,0.22890364,44039.0,44038.0,0.079]
[1633072493516,0.3770142,44033.0,44029.0,0.22718161]
[1633072493715,0.03482814,44030.0,44025.0,0.0907552]
[1633072493914,0.36061388,44029.0,44025.0,0.0907552]
[1633072494116,0.0188169,44027.0,44025.0,0.0907552]
[1633072494311,0.0227,44026.0,44025.0,0.0907552]
[1633072494514,0.45045055,44026.0,44025.0,0.1197552]
[1633072495212,0.79131955,44026.0,44025.0,0.1197552]
[1633072495412,0.89131955,44026.0,44025.0,0.1197552]
[1633072495613,0.62106621,44026.0,44025.0,0.1197552]
[1633072495810,0.3804691,44026.0,44025.0,0.1197552]
[1633072496010,0.3804691,44026.0,44025.0,0.0907552]
[1633072496211,0.0396001,44026.0,44025.0,0.0907552]
[1633072496413,0.0396001,44026.0,44025.0,0.27650059]
[1633072496611,0.0666001,44026.0,44025.0,0.30150059]
[1633072496811,0.0666001,44026.0,44025.0,0.32941765]
[1633072497010,0.0666001,44026.0,44025.0,0.37941765]
[1633072497212,0.0666001,44026.0,44025.0,0.35150059]
[1633072497812,0.0227,44026.0,44025.0,0.32650059]
[1633072498411,0.0227,44026.0,44025.0,0.27650059]
[1633072498613,0.0487,44026.0,44025.0,0.30250059]
[1633072499213,0.0487,44026.0,44025.0,0.1167552]
[1633072500213,0.18894736,44026.0,44025.0,0.35814126]
[1633072500416,0.18894736,44026.0,44025.0,0.1167552]
[1633072500673,0.18894736,44026.0,44025.0,0.1157552]
[1633072501015,0.0467,44026.0,44025.0,0.1157552]
[1633072501415,0.0207,44026.0,44025.0,0.0907552]
[1633072502015,0.0207,44026.0,44025.0,0.34066479]
[1633072502619,0.0487,44026.0,44025.0,0.36366479]
[1633072503820,0.0487,44026.0,44025.0,0.41366479]
[1633072504020,0.23737397,44026.0,44025.0,0.1407552]
[1633072504220,0.23737397,44026.0,44025.0,0.0907552]
[1633072504422,0.22949209,44026.0,44025.0,0.0907552]
[1633072504821,0.25649209,44026.0,44025.0,0.1147552]
[1633072505023,0.25649209,44026.0,44025.0,0.34713339]
[1633072506021,0.0477,44026.0,44025.0,0.34713339]
[1633072506221,0.0207,44026.0,44025.0,0.32313339]
[1633072506823,0.0427,44026.0,44025.0,0.34713339]
[1633072507226,0.0427,44026.0,44025.0,0.3483677]
[1633072507425,0.0427,44026.0,44025.0,0.3484277]
[1633072507827,0.25864988,44026.0,44025.0,0.34719339]
[1633072508027,0.0427,44026.0,44025.0,0.34719339]
[1633072508227,0.0207,44026.0,44025.0,0.32319339]
[1633072508625,0.0497,44026.0,44025.0,0.34719339]
[1633072510626,0.0517,44026.0,44025.0,0.34619339]
[1633072511834,0.26316217,44026.0,44025.0,0.1138152]
[1633072512035,0.52448451,44024.0,44023.0,0.22798097]
[1633072512233,1.67143201,44024.0,44023.0,0.22798097]
[1633072512431,0.22798097,44023.0,44001.0,0.04313278]
[1633072512697,0.00129439,44012.0,44001.0,0.0004]
[1633072512835,0.00129439,44012.0,44005.0,0.227285]
[1633072512836,0.23267226,44008.0,44005.0,0.227285]
[1633072513033,0.15838422,44011.0,44005.0,0.227285]
[1633072513034,0.22489358,44007.0,44005.0,0.227285]
[1633072513229,0.22868291,44010.0,44005.0,0.227285]
[1633072513435,0.10126069,44014.0,44009.0,0.00249364]
[1633072513436,0.25192966,44013.0,44009.0,0.00249364]
[1633072513634,0.363635,44015.0,44010.0,0.13042406]
[1633072513835,0.228684,44014.0,44010.0,0.13042406]
[1633072514033,0.228684,44014.0,44011.0,0.20935086]
[1633072514233,0.43571545,44014.0,44011.0,0.20935086]
[1633072514435,0.43571545,44014.0,44011.0,0.66391286]
[1633072514634,0.257684,44014.0,44011.0,0.68991286]
[1633072514835,0.257684,44014.0,44012.0,0.02821626]
[1633072515036,0.029,44014.0,44012.0,0.02821626]
[1633072515233,0.340958,44013.0,44012.0,0.02821626]
[1633072515436,0.569642,44013.0,44011.0,0.480562]
[1633072515694,0.228684,44012.0,44011.0,0.480562]
[1633072515835,0.22223738,44012.0,44011.0,0.480562]
[1633072516037,0.43957731,44012.0,44011.0,0.026]
[1633072516236,0.76826131,44012.0,44011.0,0.026]
[1633072516438,0.56973148,44012.0,44011.0,0.026]
[1633072516635,0.56973148,44012.0,44010.0,0.0999]
[1633072516835,0.12627034,44012.0,44011.0,0.05242956]
[1633072517036,0.353684,44012.0,44011.0,0.05242956]
[1633072517234,0.46026825,44012.0,44011.0,0.05242956]
[1633072517636,0.46026825,44012.0,44011.0,0.023]
[1633072517838,0.56026825,44012.0,44011.0,0.023]
[1633072518233,0.53526825,44012.0,44010.0,0.0999]
[1633072518437,0.68242286,44011.0,44010.0,0.0999]
[1633072518704,0.68242286,44011.0,44010.0,0.1284586]
[1633072518838,0.328684,44011.0,44010.0,0.1284586]
[1633072519039,0.228684,44011.0,44010.0,0.1284586]
[1633072519237,0.025,44012.0,44010.0,0.1284586]
[1633072519437,0.025,44012.0,44011.0,0.01934945]
[1633072520440,0.24175034,44012.0,44011.0,0.01934945]
[1633072520642,0.21675034,44012.0,44011.0,0.01934945]
[1633072520841,0.21675034,44012.0,44011.0,0.04234945]
[1633072520842,0.029,44012.0,44011.0,0.04234945]
[1633072521441,0.363643,44014.0,44011.0,0.01934945]
[1633072521851,1.2893849,44023.0,44013.0,0.00126491]
[1633072522042,0.228684,44021.0,44017.0,0.22726]
[1633072522440,0.32423912,44021.0,44018.0,0.03302283]
[1633072522644,0.41504766,44019.0,44016.0,0.24530664]
[1633072522845,0.41504766,44019.0,44017.0,0.05144584]
[1633072523040,0.029,44021.0,44018.0,0.03253526]
[1633072523243,0.228684,44019.0,44018.0,0.03253526]
[1633072524043,0.228684,44019.0,44017.0,0.022]
[1633072524241,0.228684,44018.0,44017.0,0.022]
[1633072524442,0.228684,44018.0,44017.0,0.02814017]
[1633072524642,0.228684,44018.0,44016.0,0.24530664]
[1633072524844,0.597625,44018.0,44017.0,0.018]
[1633072526242,0.569625,44018.0,44016.0,0.47259564]
[1633072526841,0.569625,44018.0,44017.0,0.018]
[1633072526842,0.597625,44018.0,44017.0,0.018]
[1633072528244,0.569625,44018.0,44016.0,0.47259564]
[1633072528647,0.228684,44018.0,44016.0,0.47259564]
[1633072528847,0.028,44018.0,44017.0,0.016]
[1633072529647,0.028,44018.0,44017.0,0.886]
[1633072529852,0.52448451,44024.0,44023.0,0.4433739]
[1633072530054,2.0703,44041.0,44024.0,0.27839928]
[1633072530255,2.0703,44041.0,44035.0,0.00124419]
[1633072530256,0.27327284,44040.0,44035.0,0.00124419]
[1633072530450,0.27327284,44040.0,44036.0,0.03261079]
[1633072530451,0.228684,44040.0,44036.0,0.03261079]
[1633072530714,0.0227,44043.0,44037.0,0.28537221]
[1633072530851,0.27325832,44042.0,44041.0,0.19609769]
[1633072531053,0.04457432,44042.0,44041.0,0.45457885]
[1633072531449,0.0227,44043.0,44041.0,0.45457885]
[1633072531650,0.0227,44043.0,44042.0,0.25643049]
[1633072531850,0.09166628,44047.0,44042.0,0.25764942]
[1633072532050,0.228684,44046.0,44043.0,0.10451026]
[1633072532254,0.0631,44049.0,44043.0,0.10451026]
[1633072532452,0.0631,44049.0,44044.0,0.03071461]
[1633072532653,0.0631,44049.0,44045.0,0.26779234]
[1633072532853,0.0881,44049.0,44045.0,0.26779234]
[1633072533054,0.23391011,44048.0,44045.0,0.26779234]
[1633072533253,0.23391011,44048.0,44043.0,0.021]
[1633072533714,0.3056288,44048.0,44043.0,0.021]
[1633072534054,0.3056288,44048.0,44042.0,0.27500042]
[1633072534254,0.6463338,44048.0,44042.0,0.27500042]
[1633072534855,0.6753338,44048.0,44042.0,0.29200042]
[1633072535256,0.6753338,44048.0,44047.0,0.16381396]
[1633072535457,0.60361511,44048.0,44042.0,0.30000742]
[1633072536459,0.1,44047.0,44042.0,0.30000742]
[1633072536859,0.1,44047.0,44042.0,0.29878849]
[1633072537259,0.1,44047.0,44042.0,0.44796933]
[1633072538261,0.34074,44045.0,44042.0,0.42696933]
[1633072538460,0.34074,44045.0,44042.0,0.14518084]
[1633072538861,0.34074,44045.0,44042.0,0.16618084]
[1633072538862,0.1,44044.0,44042.0,0.16618084]
[1633072539260,0.1,44044.0,44043.0,0.48538916]
[1633072539465,0.03,44045.0,44043.0,0.26501284]
[1633072539761,0.03,44045.0,44044.0,0.02857508]
[1633072539962,0.03,44045.0,44044.0,0.02019607]
[1633072540365,0.0631,44049.0,44044.0,0.25328273]
[1633072540561,0.0631,44049.0,44045.0,0.02597101]
[1633072541160,0.24825926,44048.0,44045.0,0.02597101]
[1633072541564,0.41666296,44040.0,44034.0,0.00127811]
[1633072541772,0.41666296,44040.0,44030.0,0.0999]
[1633072541773,0.00128941,44032.0,44030.0,0.0999]
[1633072541966,0.07038247,44031.0,44030.0,0.0999]
[1633072542164,0.33378741,44031.0,44030.0,0.0999]
[1633072542563,0.16985237,44031.0,44030.0,0.32032187]
[1633072542963,0.19685237,44031.0,44030.0,0.34632187]
[1633072543362,0.0497,44031.0,44030.0,0.34632187]
[1633072543762,0.0497,44031.0,44030.0,0.34762107]
[1633072543965,0.0497,44031.0,44030.0,0.54256619]
[1633072544363,0.0227,44038.0,44030.0,0.56656619]
[1633072544564,0.0227,44038.0,44036.0,0.00129932]
[1633072544761,0.0227,44038.0,44033.0,0.227137]
[1633072544961,0.0227,44038.0,44037.0,0.20569717]
[1633072545162,0.0367,44038.0,44037.0,0.20569717]
[1633072546365,0.377462,44038.0,44035.0,0.15923777]
[1633072546566,0.377462,44038.0,44033.0,0.227137]
[1633072546567,0.02636857,44037.0,44033.0,0.227137]
[1633072546763,0.02636857,44037.0,44030.0,0.12645531]
[1633072546966,0.02636857,44037.0,44030.0,0.14345531]
[1633072547163,0.02636857,44037.0,44035.0,0.028]
[1633072547364,0.02724455,44036.0,44035.0,0.0089504]
[1633072547566,0.454399,44037.0,44035.0,0.14657215]
[1633072547765,0.228684,44036.0,44035.0,0.14657215]
[1633072547967,0.228684,44036.0,44035.0,0.0089504]
[1633072548765,0.228684,44036.0,44030.0,0.09345531]
[1633072548966,0.02599784,44035.0,44028.0,0.44760728]
[1633072549171,0.47708,44038.0,44028.0,0.19730697]
[1633072549367,0.028,44036.0,44035.0,0.026]
[1633072549568,0.26972898,44036.0,44035.0,0.026]
[1633072549968,0.04104498,44036.0,44035.0,0.026]
[1633072550768,0.01304498,44036.0,44034.0,0.17749229]
[1633072550972,0.340762,44037.0,44034.0,0.17749229]
[1633072551169,0.0227,44038.0,44035.0,0.025]
[1633072551367,0.027,44036.0,44035.0,0.025]
[1633072551829,0.027,44036.0,44035.0,0.375]
[1633072552830,0.027,44036.0,44035.0,0.84279912]
[1633072553026,0.0227,44038.0,44035.0,0.81779912]
[1633072553428,0.011,44036.0,44035.0,0.84579912]
[1633072553626,0.011,44036.0,44035.0,0.39579912]
[1633072554628,0.0227,44038.0,44035.0,0.35]
[1633072554828,0.02658402,44037.0,44035.0,0.35]
[1633072555226,0.02658402,44037.0,44035.0,0.378]
[1633072555227,0.03,44036.0,44035.0,0.378]
[1633072555431,0.05656468,44036.0,44035.0,0.378]
[1633072555628,0.03,44036.0,44035.0,0.378]
[1633072555829,0.03,44036.0,44035.0,0.028]
[1633072556027,0.03,44036.0,44035.0,0.128]
[1633072556833,0.340761,44037.0,44035.0,0.1]
[1633072557430,0.027,44036.0,44035.0,0.125]
[1633072557832,0.027,44036.0,44035.0,0.575]
[1633072558629,0.027,44036.0,44035.0,0.57627185]
[1633072558834,0.227147,44040.0,44035.0,0.55127185]
[1633072559232,0.029,44036.0,44035.0,0.57927185]
[1633072559441,0.029,44036.0,44033.0,5.0]
[1633072559442,0.26177981,44036.0,44033.0,5.0]
[1633072559643,0.06878872,44034.0,44033.0,5.0]
[1633072559843,0.09148872,44034.0,44033.0,5.0]
[1633072560439,0.09148872,44034.0,44033.0,5.21518828]
[1633072561433,0.11248872,44034.0,44033.0,5.24018828]
[1633072562039,0.0227,44034.0,44033.0,5.21518828]
[1633072562237,0.04868817,44034.0,44033.0,5.21518828]
[1633072562435,0.0227,44034.0,44033.0,5.45518828]
[1633072563240,0.0507,44034.0,44033.0,5.47818828]
[1633072563840,0.0227,44034.0,44033.0,5.45518828]
[1633072565242,0.0557,44034.0,44033.0,5.46018828]
[1633072567041,0.0777,44034.0,44033.0,5.46918828]
[1633072567445,0.0227,44034.0,44033.0,5.21518828]
[1633072567644,0.263526,44035.0,44033.0,5.22999136]
[1633072567844,0.286226,44035.0,44033.0,5.45716436]
[1633072568447,0.286226,44035.0,44033.0,5.24197608]
[1633072568649,0.00128272,44034.0,44033.0,5.0]
[1633072568846,0.02398272,44034.0,44033.0,5.0]
[1633072569244,0.02398272,44034.0,44033.0,5.017]
[1633072569448,0.02398272,44034.0,44033.0,5.25332057]
[1633072570647,0.02398272,44034.0,44033.0,5.23632057]
[1633072570849,0.0227,44034.0,44033.0,5.23632057]
[1633072571047,0.0507,44034.0,44033.0,5.25832057]
[1633072572446,0.0227,44034.0,44033.0,5.23632057]
[1633072573046,0.0497,44034.0,44033.0,5.25832057]
[1633072573648,0.027,44034.0,44033.0,5.25832057]
[1633072573851,0.027,44034.0,44033.0,5.54832057]
[1633072574451,0.027,44034.0,44033.0,5.23632057]
[1633072574651,0.340747,44036.0,44033.0,5.23632057]
[1633072574850,0.02759248,44035.0,44033.0,5.23632057]
[1633072575052,0.02759248,44035.0,44033.0,5.25232057]
[1633072575253,0.029,44034.0,44033.0,5.25232057]
[1633072575452,0.029,44034.0,44033.0,5.35207469]
[1633072575653,0.05599232,44034.0,44033.0,5.35207469]
[1633072575852,0.39679532,44034.0,44033.0,5.35207469]
[1633072576051,0.369803,44034.0,44033.0,5.35207469]
[1633072576252,0.029,44034.0,44033.0,5.59207469]
[1633072576452,0.454375,44037.0,44033.0,5.57607469]
[1633072576850,0.454375,44037.0,44034.0,0.01192807]
[1633072577051,0.487375,44037.0,44034.0,0.01192807]
[1633072577255,0.487375,44037.0,44035.0,0.10758271]
[1633072577256,0.340748,44036.0,44035.0,0.10758271]
[1633072577453,0.487375,44037.0,44035.0,0.10758271]
[1633072577454,0.033,44037.0,44035.0,0.10758271]
[1633072577653,0.033,44037.0,44036.0,0.02297803]
[1633072578452,0.0227,44041.0,44036.0,0.02297803]
[1633072578652,0.0227,44041.0,44037.0,0.01829273]
[1633072579855,0.340732,44039.0,44037.0,0.01829273]
[1633072581255,0.366732,44039.0,44037.0,0.02129273]
[1633072582455,0.01372093,44038.0,44037.0,0.003]
[1633072583254,0.033,44038.0,44037.0,0.002]
[1633072584457,0.340732,44039.0,44036.0,0.22714952]
[1633072585257,0.360732,44039.0,44036.0,0.23414952]
[1633072586455,0.340732,44039.0,44036.0,0.22714952]
[1633072587256,0.360732,44039.0,44036.0,0.28514952]
[1633072588657,0.340732,44039.0,44036.0,0.27714952]
[1633072589261,0.363732,44039.0,44036.0,0.24714952]
[1633072590461,0.363732,44039.0,44036.0,0.29714952]
[1633072590662,0.363732,44039.0,44037.0,0.23409475]
[1633072590869,0.023,44039.0,44038.0,1.17139477]
[1633072591063,0.023,44039.0,44038.0,0.07139477]
[1633072591262,0.017,44039.0,44038.0,0.02139477]
[1633072591464,0.017,44039.0,44038.0,0.25101812]
[1633072591661,0.017,44039.0,44038.0,0.30101812]
[1633072592060,0.017,44039.0,44038.0,0.07139477]
[1633072592261,0.017,44039.0,44038.0,0.29905427]
[1633072592463,0.017,44039.0,44038.0,0.54905427]
[1633072592862,0.017,44039.0,44038.0,0.02139477]
[1633072593262,0.024,44039.0,44038.0,0.04839477]
[1633072594263,0.028,44044.0,44041.0,0.54061172]
[1633072594576,2.03236611,44054.0,44053.0,0.32830366]
[1633072594577,0.0004,44054.0,44053.0,0.32830366]
[1633072594764,0.0004,44054.0,44053.0,0.53649578]
[1633072595164,0.0004,44054.0,44053.0,0.77403615]
[1633072595364,0.0044,44054.0,44053.0,1.45096707]
[1633072595565,2.0004,44065.0,44053.0,2.65826149]
[1633072595772,2.0004,44065.0,44056.0,1.16966928]
[1633072595969,2.0004,44065.0,44056.0,1.34973401]
[1633072596364,2.0004,44065.0,44064.0,0.00125702]
[1633072596571,2.0004,44065.0,44064.0,0.05360251]
[1633072596772,2.0004,44065.0,44064.0,0.09860251]
[1633072596969,0.0131432,44065.0,44064.0,0.09860251]
[1633072597180,0.0002,44073.0,44065.0,2.43872044]
[1633072597374,0.0002,44073.0,44072.0,0.00735538]
[1633072597569,0.0004,44083.0,44072.0,0.24822338]
[1633072597767,0.0004,44083.0,44080.0,0.0012883]
[1633072597967,0.0004,44083.0,44081.0,0.3267822]
[1633072598169,0.0004,44083.0,44082.0,0.25302274]
[1633072598367,0.0002,44084.0,44082.0,0.30302274]
[1633072598568,0.0002,44084.0,44083.0,0.26307334]
[1633072599367,0.0002,44084.0,44083.0,0.03640118]
[1633072599368,0.0272,44084.0,44083.0,0.03640118]
[1633072599579,0.04605065,44084.0,44083.0,0.03640118]
[1633072599774,0.01905065,44084.0,44079.0,0.226885]
[1633072599971,0.01879397,44083.0,44079.0,0.226885]
[1633072600371,0.01879397,44083.0,44076.0,0.03866287]
[1633072600372,0.01999473,44083.0,44076.0,0.03866287]
[1633072600570,0.01999473,44083.0,44075.0,0.22694436]
[1633072600571,0.01950913,44082.0,44077.0,0.14322204]
[1633072600769,0.01950913,44082.0,44077.0,0.17781929]
[1633072601170,0.01911917,44083.0,44077.0,0.17781929]
[1633072601367,0.02,44082.0,44077.0,0.20981929]
[1633072601569,0.02,44082.0,44077.0,0.25981929]
[1633072601769,0.02,44082.0,44077.0,0.48675529]
[1633072601967,0.01865944,44081.0,44077.0,0.48675529]
[1633072602168,0.02,44082.0,44079.0,0.226925]
[1633072602570,0.02,44082.0,44080.0,0.05]
[1633072602966,0.0002,44084.0,44080.0,0.05]
[1633072603168,0.01919403,44083.0,44080.0,0.05]
[1633072603368,0.025,44082.0,44080.0,0.025]
[1633072603567,0.02295547,44081.0,44080.0,0.025]
[1633072603774,0.025,44082.0,44080.0,0.025]
[1633072603970,0.025,44082.0,44080.0,0.075]
[1633072604169,0.025,44082.0,44080.0,0.3069948]
[1633072604370,0.025,44082.0,44080.0,0.075]
[1633072604775,0.0002,44084.0,44080.0,0.05]
[1633072604970,0.02004967,44083.0,44082.0,0.22691688]
[1633072605169,0.233393,44083.0,44082.0,0.22691688]
[1633072605368,0.233393,44083.0,44082.0,0.27691688]
[1633072605972,0.02004967,44083.0,44082.0,0.27691688]
[1633072606172,0.02004967,44083.0,44082.0,0.37338167]
[1633072606373,0.0282,44084.0,44082.0,0.27691688]
[1633072606976,0.24769595,44084.0,44082.0,0.27691688]
[1633072607172,0.24769595,44084.0,44079.0,0.226925]
[1633072607173,0.340408,44082.0,44079.0,0.226925]
[1633072607373,0.0002,44084.0,44082.0,0.022]
[1633072607374,0.0267301,44084.0,44082.0,0.022]
[1633072607570,0.0262,44084.0,44082.0,0.022]
[1633072607972,0.0002,44084.0,44081.0,0.226897]
[1633072608372,0.0002,44084.0,44081.0,0.45380641]
[1633072608979,0.0002,44084.0,44082.0,0.05]
[1633072609174,0.0002,44084.0,44082.0,0.05302552]
[1633072609374,0.0172,44084.0,44081.0,0.48180641]
[1633072609574,0.01842655,44084.0,44081.0,0.254897]
[1633072609774,8.498e-05,44083.0,44081.0,0.254897]
[1633072609976,0.02811883,44082.0,44081.0,0.254897]
[1633072610375,0.25250565,44082.0,44081.0,0.028]
[1633072610575,0.02811883,44082.0,44081.0,0.028]
[1633072610979,0.02811883,44082.0,44080.0,0.26818504]
[1633072611374,0.029,44082.0,44081.0,0.021]
[1633072611975,0.029,44082.0,44081.0,0.06027021]
[1633072612576,0.029,44082.0,44081.0,0.021]
[1633072612781,8.498e-05,44083.0,44080.0,0.22690857]
[1633072612982,8.498e-05,44083.0,44080.0,0.27311227]
[1633072613379,0.02608498,44083.0,44080.0,0.24890857]
[1633072613579,0.02608498,44083.0,44081.0,0.04045343]
[1633072613777,0.02608498,44083.0,44082.0,0.0406638]
[1633072614379,0.0449159,44083.0,44082.0,0.0406638]
[1633072614837,0.0189159,44083.0,44082.0,0.0406638]
[1633072615436,0.0189159,44083.0,44082.0,0.0546638]
[1633072615437,0.0449159,44083.0,44082.0,0.0546638]
[1633072617039,0.0449159,44083.0,44082.0,0.0406638]
[1633072617040,0.0189159,44083.0,44082.0,0.0406638]
[1633072617638,0.051446,44083.0,44082.0,0.0526638]
[1633072617840,0.274646,44083.0,44082.0,0.0526638]
[1633072618040,0.2813696,44083.0,44082.0,0.0526638]
[1633072618842,0.2493696,44083.0,44082.0,0.0406638]
[1633072619446,0.2493696,44083.0,44078.0,0.326788]
[1633072619447,0.4925696,44083.0,44078.0,0.326788]
[1633072619651,0.00126011,44079.0,44078.0,0.0999]
[1633072619845,0.25047421,44079.0,44078.0,0.0999]
[1633072620047,0.25047421,44079.0,44078.0,0.0949]
[1633072620048,0.29903257,44079.0,44078.0,0.0949]
[1633072620248,0.39911241,44079.0,44078.0,0.0949]
[1633072620446,0.49469503,44079.0,44078.0,0.0949]
[1633072620645,0.71789503,44079.0,44078.0,0.0949]
[1633072621245,0.62231241,44079.0,44078.0,0.0949]
[1633072621647,0.65231241,44079.0,44078.0,0.0959]
[1633072621844,0.42911241,44079.0,44078.0,0.0959]
[1633072623048,0.38002395,44079.0,44078.0,0.0959]
[1633072623650,0.38055405,44079.0,44078.0,0.0959]
[1633072623851,0.60675405,44079.0,44078.0,0.0949]
[1633072624052,0.38355405,44079.0,44078.0,0.0949]
[1633072624852,0.44161391,44079.0,44078.0,0.0949]
[1633072625052,0.23349334,44078.0,44076.0,0.226957]
[1633072625252,0.03915346,44077.0,44076.0,0.226957]
[1633072625854,0.09778152,44077.0,44076.0,0.226957]
[1633072627050,0.07862806,44077.0,44076.0,0.226957]
[1633072627650,0.11262806,44077.0,44076.0,0.226957]
[1633072629252,0.07862806,44077.0,44076.0,0.226957]
[1633072629651,0.10962806,44077.0,44076.0,0.244957]
[1633072629856,0.08962806,44077.0,44076.0,0.244957]
[1633072630059,7.984e-05,44079.0,44076.0,0.294957]
[1633072630258,7.984e-05,44079.0,44077.0,0.03613142]
[1633072630453,7.984e-05,44079.0,44078.0,0.055601]
[1633072630654,7.984e-05,44079.0,44078.0,0.00723174]
[1633072630852,7.984e-05,44079.0,44078.0,0.05487016]
[1633072631064,0.05980804,44084.0,44079.0,0.22128567]
[1633072631065,0.0002,44084.0,44079.0,0.22128567]
[1633072631256,0.0002,44084.0,44081.0,0.00529868]
[1633072631456,0.0002,44084.0,44081.0,0.306742]
[1633072631655,0.00013707,44085.0,44083.0,0.00460401]
[1633072632255,0.0006,44087.0,44083.0,0.00460401]
[1633072632458,0.0006,44087.0,44083.0,0.05467119]
[1633072632654,0.0006,44087.0,44083.0,0.00710935]
[1633072632854,0.0006,44087.0,44084.0,0.04337498]
[1633072633053,0.0006,44087.0,44083.0,0.05710935]
[1633072633253,0.0006,44087.0,44084.0,0.0358568]
[1633072633452,0.0006,44087.0,44083.0,0.05581357]
[1633072633654,0.0006,44087.0,44084.0,0.04756667]
[1633072633853,0.0006,44087.0,44083.0,0.08881357]
[1633072634057,0.0006,44087.0,44084.0,0.03695678]
[1633072634254,0.0006,44087.0,44086.0,0.08809871]
[1633072634660,0.0402,44089.0,44086.0,0.08809871]
[1633072634858,0.0402,44089.0,44087.0,0.04639085]
[1633072635057,0.0402,44089.0,44086.0,0.09678612]
[1633072635255,0.13104955,44092.0,44088.0,0.06238745]
[1633072635454,0.13104955,44092.0,44090.0,0.10519098]
[1633072635855,0.13104955,44092.0,44091.0,0.16879846]
[1633072636058,0.19060821,44092.0,44091.0,0.16879846]
[1633072636261,0.20952617,44092.0,44091.0,0.16879846]
[1633072636467,0.0007301,44096.0,44091.0,0.16879846]
[1633072636468,0.09605248,44104.0,44100.0,0.33588955]
[1633072636666,0.0549398,44103.0,44102.0,0.00120412]
[1633072636862,0.0002,44105.0,44104.0,0.35125291]
[1633072637060,0.00964864,44107.0,44105.0,0.03305358]
[1633072637061,0.00604864,44107.0,44105.0,0.03305358]
[1633072637259,0.0548874,44106.0,44105.0,0.03305358]
[1633072637464,0.01991944,44106.0,44105.0,0.03305358]
[1633072637664,0.00017246,44109.0,44105.0,0.06094412]
[1633072637861,0.01844818,44108.0,44105.0,0.06094412]
[1633072638059,0.00017246,44109.0,44105.0,0.06094412]
[1633072638259,0.0005301,44108.0,44105.0,0.06094412]
[1633072638459,0.01600224,44107.0,44105.0,0.06094412]
[1633072638660,0.0005301,44108.0,44106.0,0.13293256]
[1633072638861,0.0005301,44108.0,44106.0,0.35973556]
[1633072639060,0.00070256,44109.0,44106.0,0.226803]
[1633072639262,0.00070256,44109.0,44106.0,0.22679]
[1633072639263,0.2541048,44108.0,44106.0,0.22679]
[1633072639466,0.53769844,44107.0,44100.0,0.33588955]
[1633072639664,0.12574288,44100.0,44097.0,0.02620889]
[1633072639866,0.02078273,44098.0,44097.0,0.02620889]
[1633072640065,0.77843945,44098.0,44097.0,0.02620889]
[1633072640265,0.59197547,44098.0,44097.0,0.02620889]
[1633072640464,0.12975372,44095.0,44078.0,0.5907]
[1633072640667,0.00129116,44079.0,44077.0,0.796]
[1633072640866,0.04092612,44088.0,44081.0,0.226927]
[1633072640867,0.02,44082.0,44081.0,0.226927]
[1633072641063,0.03596287,44082.0,44081.0,0.226927]
[1633072641263,0.03596287,44082.0,44081.0,0.26467085]
[1633072641461,0.03603727,44082.0,44081.0,0.26467085]
[1633072641662,0.0200744,44082.0,44081.0,0.52354392]
[1633072641865,7.44e-05,44082.0,44081.0,0.42238482]
[1633072642064,7.44e-05,44082.0,44081.0,0.72971813]
[1633072642265,7.44e-05,44082.0,44081.0,0.7394156]
[1633072642461,7.44e-05,44082.0,44081.0,2.1452156]
[1633072642662,7.44e-05,44082.0,44081.0,2.37417033]
[1633072642866,7.44e-05,44082.0,44081.0,1.40817033]
[1633072643062,7.44e-05,44082.0,44081.0,1.14017033]
[1633072643264,0.26065125,44092.0,44087.0,0.10172031]
[1633072643465,0.01570983,44091.0,44089.0,0.6805678]
[1633072643667,0.12975372,44095.0,44094.0,0.123295]
[1633072643867,0.12975372,44095.0,44094.0,0.93187329]
[1633072644068,0.12975372,44095.0,44094.0,1.29876649]
[1633072644264,0.12975372,44095.0,44094.0,0.650163]
[1633072644465,0.12975372,44095.0,44094.0,0.126868]
[1633072644666,0.14576579,44095.0,44094.0,0.00612775]
[1633072644866,0.14576579,44095.0,44091.0,0.24]
[1633072645065,0.01707415,44094.0,44091.0,0.24]
[1633072645265,0.01707415,44094.0,44092.0,0.0079336]
[1633072645473,0.01707415,44094.0,44091.0,0.09814892]
[1633072645665,0.01707415,44094.0,44093.0,0.07487593]
[1633072645869,0.12574288,44100.0,44094.0,0.8]
[1633072646067,0.12574288,44100.0,44099.0,0.00253403]
[1633072646266,0.12574288,44100.0,44099.0,0.15110932]
[1633072646670,0.0003,44112.0,44099.0,0.15110932]
[1633072646671,0.00093761,44120.0,44117.0,0.51562393]
[1633072646875,0.0002,44122.0,44117.0,0.51562393]
[1633072646876,0.05452009,44129.0,44123.0,0.80256472]
[1633072647085,0.05,44139.0,44123.0,0.80256472]
[1633072647086,0.16327284,44146.0,44128.0,0.00127239]
[1633072647277,0.16327284,44146.0,44142.0,0.06636537]
[1633072647278,0.0783373,44146.0,44142.0,0.06636537]
[1633072647471,1.3732,44144.0,44143.0,0.0198]
[1633072647677,1.3732,44144.0,44143.0,0.04922584]
[1633072647678,1.37537517,44144.0,44143.0,0.04922584]
[1633072647873,0.973469,44144.0,44143.0,0.04922584]
[1633072648074,0.87202286,44144.0,44133.0,0.19354538]
[1633072648271,0.19698346,44143.0,44133.0,0.19354538]
[1633072648472,0.0089,44151.0,44142.0,0.00128437]
[1633072648670,0.0089,44151.0,44136.0,0.01750796]
[1633072648671,0.228684,44150.0,44136.0,0.01750796]
[1633072648874,0.0495,44147.0,44141.0,0.0320399]
[1633072649075,0.21221199,44144.0,44141.0,0.0320399]
[1633072649281,0.0089,44151.0,44143.0,1.17329238]
[1633072649481,10.00506,44164.0,44143.0,1.17329238]
[1633072649482,8.35522297,44164.0,44163.0,0.11168269]
[1633072649687,8.35522297,44164.0,44163.0,1.54719362]
[1633072649688,5.37101544,44164.0,44163.0,1.54719362]
[1633072649873,5.37101544,44164.0,44163.0,2.64048019]